bitfinex/quotes_BTCUSD_20230115
["timestamp","ask_amount","ask_price","bid_price","bid_amount"]
[1673745421481,0.96451277,20708.0,20705.0,0.48459596]
[1673745421731,0.96451277,20708.0,20705.0,0.67532191]
[1673745421997,0.96451277,20708.0,20705.0,0.48459596]
[1673745422242,0.35672428,20707.0,20705.0,0.48459596]
[1673745423253,0.482906,20708.0,20705.0,0.48459596]
[1673745424245,0.94015892,20708.0,20705.0,0.48459596]
[1673745425015,0.482902,20709.0,20705.0,1.15829491]
[1673745425016,0.482882,20709.0,20705.0,1.15829491]
[1673745425274,0.87241647,20710.0,20706.0,0.321081]
[1673745425575,0.40182139,20709.0,20706.0,0.19072595]
[1673745425828,0.482875,20710.0,20705.0,0.482955]
[1673745426069,0.99491765,20710.0,20707.0,0.39452696]
[1673745426581,1.40987296,20710.0,20707.0,0.39452696]
[1673745426583,0.43700539,20709.0,20705.0,0.19072595]
[1673745426829,6.38e-05,20707.0,20704.0,0.01333869]
[1673745427100,1.07089169,20706.0,20704.0,0.01333869]
[1673745427350,0.06790269,20705.0,20704.0,0.01333869]
[1673745427619,1.003037,20705.0,20704.0,0.01333869]
[1673745427875,1.133637,20705.0,20704.0,0.01333869]
[1673745428388,1.233637,20705.0,20704.0,0.01333869]
[1673745428937,1.533637,20705.0,20704.0,0.01333869]
[1673745429460,2.05706423,20705.0,20704.0,0.01333869]
[1673745429715,2.96671504,20705.0,20704.0,0.00432269]
[1673745429984,0.1,20704.0,20698.0,0.01456518]
[1673745430288,0.1306,20701.0,20698.0,0.01456518]
[1673745430542,1.48636,20700.0,20698.0,0.01456518]
[1673745430794,1.51717569,20700.0,20698.0,0.01456518]
[1673745431047,0.037087,20699.0,20698.0,0.01456518]
[1673745431300,0.96900433,20699.0,20698.0,0.01456518]
[1673745432046,0.920202,20699.0,20698.0,0.01456518]
[1673745432307,1.350402,20699.0,20698.0,0.01456518]
[1673745432588,2.03460638,20699.0,20698.0,0.01456518]
[1673745432841,2.03460638,20699.0,20697.0,0.0163118]
[1673745432842,1.96670369,20699.0,20697.0,0.0163118]
[1673745433103,1.01630169,20698.0,20697.0,0.0163118]
[1673745433364,2.31966469,20698.0,20697.0,0.0163118]
[1673745433624,2.62575753,20698.0,20697.0,0.0163118]
[1673745437254,2.01152261,20698.0,20697.0,0.20703775]
[1673745437525,0.167687,20698.0,20697.0,0.20703775]
[1673745437778,0.037087,20698.0,20697.0,0.48482719]
[1673745438122,0.37572179,20699.0,20697.0,0.48482719]
[1673745438539,0.37572179,20699.0,20697.0,0.0163118]
[1673745439040,0.50991137,20699.0,20697.0,0.0163118]
[1673745439313,0.037087,20698.0,20697.0,0.0163118]
[1673745440334,1.003363,20698.0,20697.0,0.0163118]
[1673745441114,1.003363,20698.0,20697.0,0.4042301]
[1673745441372,0.483138,20698.0,20697.0,0.0163118]
[1673745441674,0.520225,20698.0,20697.0,0.0163118]
[1673745442184,0.515225,20698.0,20697.0,0.0163118]
[1673745442440,0.998363,20698.0,20697.0,0.0163118]
[1673745442698,0.478138,20698.0,20697.0,0.0163118]
[1673745442958,0.515225,20698.0,20697.0,0.0163118]
[1673745443224,0.523725,20698.0,20697.0,0.0163118]
[1673745443728,1.006863,20698.0,20697.0,0.0163118]
[1673745443974,0.523725,20698.0,20697.0,0.0163118]
[1673745444624,0.969776,20698.0,20697.0,0.0163118]
[1673745444886,1.00674604,20698.0,20697.0,0.0163118]
[1673745445145,0.96965904,20698.0,20697.0,0.0163118]
[1673745445403,1.00674604,20698.0,20697.0,0.0163118]
[1673745445658,0.52360804,20698.0,20697.0,0.0163118]
[1673745447000,0.48652104,20698.0,20697.0,0.0163118]
[1673745447296,1.00674604,20698.0,20697.0,0.0163118]
[1673745447573,1.36936633,20698.0,20697.0,0.0163118]
[1673745447823,2.0270161,20698.0,20697.0,0.0163118]
[1673745448585,2.34310773,20698.0,20697.0,0.01616401]
[1673745448859,2.47270773,20698.0,20697.0,0.01616401]
[1673745450107,2.47270773,20698.0,20697.0,0.00582684]
[1673745450869,0.1,20697.0,20696.0,0.01414706]
[1673745451132,2.41322369,20697.0,20696.0,0.01414706]
[1673745451378,2.45031069,20697.0,20696.0,0.01414706]
[1673745451632,2.71278814,20697.0,20696.0,6e-08]
[1673745451881,2.71278814,20697.0,20695.0,0.0163118]
[1673745452180,0.50151,20696.0,20695.0,0.0163118]
[1673745452475,1.504967,20696.0,20695.0,0.0163118]
[1673745452723,1.204967,20696.0,20695.0,0.0163118]
[1673745453803,1.141857,20696.0,20695.0,0.0163118]
[1673745454063,1.141857,20696.0,20695.0,0.0819318]
[1673745454064,1.011957,20696.0,20695.0,0.0819318]
[1673745454329,0.97487,20696.0,20695.0,0.0819318]
[1673745454609,0.97487,20696.0,20695.0,0.0163118]
[1673745454859,1.36650996,20696.0,20695.0,0.0163118]
[1673745455119,1.011957,20696.0,20695.0,0.0163118]
[1673745455388,1.311957,20696.0,20695.0,0.0163118]
[1673745455662,1.9045288,20696.0,20695.0,0.0163118]
[1673745455913,1.5045288,20696.0,20695.0,0.0163118]
[1673745456164,1.93497918,20696.0,20695.0,0.0163118]
[1673745456426,1.44240738,20696.0,20695.0,0.0163118]
[1673745458249,1.43390738,20696.0,20695.0,0.0163118]
[1673745459771,1.003457,20696.0,20695.0,0.0163118]
[1673745460019,1.011957,20696.0,20695.0,0.0163118]
[1673745460505,1.36899473,20696.0,20695.0,0.0163118]
[1673745461502,1.46899473,20696.0,20695.0,0.0163118]
[1673745461746,1.89959473,20696.0,20695.0,0.0163118]
[1673745462495,2.37679642,20696.0,20695.0,0.0163118]
[1673745462749,2.36179642,20696.0,20695.0,0.0163118]
[1673745463233,2.49219642,20696.0,20695.0,0.0163118]
[1673745463495,2.63653215,20696.0,20695.0,8e-07]
[1673745463749,2.63653215,20696.0,20694.0,0.01647644]
[1673745463750,0.1,20695.0,20694.0,0.01647644]
[1673745464016,2.64248611,20695.0,20694.0,4.4e-07]
[1673745464268,2.97250973,20695.0,20692.0,0.01598983]
[1673745464522,0.2306,20693.0,20692.0,0.01598983]
[1673745464787,1.980365,20693.0,20692.0,0.01598983]
[1673745465030,2.025952,20693.0,20692.0,0.01598983]
[1673745465520,3.34244435,20693.0,20692.0,0.01598983]
[1673745465768,2.96231369,20693.0,20692.0,0.01598983]
[1673745466027,3.1267406,20693.0,20692.0,0.01598983]
[1673745466281,2.3675806,20693.0,20692.0,0.01598983]
[1673745466841,3.00479142,20693.0,20689.0,0.01598983]
[1673745467094,0.2749201,20690.0,20689.0,0.01598983]
[1673745467353,4.3825467,20690.0,20687.0,0.01507912]
[1673745467630,4.3825467,20690.0,20680.0,0.144115]
[1673745467631,1.50620492,20688.0,20681.0,0.41747779]
[1673745467920,1.04270534,20687.0,20683.0,0.0157943]
[1673745468197,0.02856,20684.0,20683.0,0.01159206]
[1673745468436,2.06114638,20684.0,20683.0,0.01159206]
[1673745468691,2.07318369,20684.0,20683.0,0.01159206]
[1673745469238,1.97318369,20684.0,20683.0,0.01159206]
[1673745469747,1.495982,20684.0,20683.0,0.01159206]
[1673745470273,1.88797842,20684.0,20683.0,0.01159206]
[1673745472112,1.39601342,20684.0,20683.0,0.01159206]
[1673745473643,1.89396046,20684.0,20683.0,0.01159206]
[1673745474153,1.90246046,20684.0,20683.0,0.01159206]
[1673745474400,1.40451342,20684.0,20683.0,0.01159206]
[1673745475150,1.35451342,20684.0,20683.0,0.01159206]
[1673745475900,1.65451342,20684.0,20683.0,0.01159206]
[1673745476155,1.35451342,20684.0,20683.0,0.01159206]
[1673745476924,0.962517,20684.0,20683.0,0.01159206]
[1673745477459,0.88877761,20685.0,20683.0,0.73052717]
[1673745477460,0.483457,20685.0,20683.0,0.73052717]
[1673745477703,0.41432575,20688.0,20683.0,0.4388857]
[1673745477704,1.3765141,20687.0,20683.0,0.4388857]
[1673745477970,1.3765141,20687.0,20684.0,0.44474422]
[1673745478788,0.8930971,20687.0,20684.0,0.44474422]
[1673745479033,0.35369789,20686.0,20684.0,0.44474422]
[1673745479286,0.483442,20685.0,20684.0,0.44474422]
[1673745479534,0.491942,20685.0,20683.0,0.01159206]
[1673745479793,0.491942,20685.0,20684.0,0.35245363]
[1673745480869,0.0085,20685.0,20684.0,0.35245363]
[1673745482603,0.0085,20685.0,20683.0,0.49832914]
[1673745482882,1.34454328,20685.0,20683.0,0.01159206]
[1673745483140,0.43625493,20684.0,20683.0,0.01159206]
[1673745483607,0.91971993,20684.0,20683.0,0.01159206]
[1673745483611,0.92821993,20684.0,20683.0,0.01159206]
[1673745483870,1.41168493,20684.0,20683.0,0.01159206]
[1673745484136,1.64954162,20684.0,20683.0,0.01159206]
[1673745484388,1.81328669,20684.0,20683.0,0.01159206]
[1673745484660,1.97244669,20684.0,20683.0,0.01159206]
[1673745485980,2.00693903,20684.0,20683.0,0.01159206]
[1673745486230,2.48414072,20684.0,20683.0,0.00478966]
[1673745486482,2.48414072,20684.0,20677.0,0.01898661]
[1673745486483,0.1,20683.0,20677.0,0.01898661]
[1673745486734,2.69953676,20682.0,20677.0,0.01898661]
[1673745486992,0.02856,20680.0,20677.0,0.01898661]
[1673745487249,1.459246,20679.0,20678.0,0.37246895]
[1673745487801,0.975664,20679.0,20678.0,0.37246895]
[1673745488858,0.492082,20679.0,20678.0,0.37246895]
[1673745489926,0.0085,20679.0,20678.0,0.37246895]
[1673745490174,0.483495,20683.0,20677.0,0.14958661]
[1673745490428,0.03449234,20684.0,20682.0,0.1306]
[1673745490713,0.03449234,20684.0,20683.0,0.40602295]
[1673745490972,0.43039465,20684.0,20682.0,0.47415525]
[1673745491239,0.91386465,20684.0,20682.0,0.47415525]
[1673745491750,0.91386465,20684.0,20680.0,0.35330191]
[1673745492011,1.4215001,20684.0,20680.0,0.35330191]
[1673745492267,0.1,20683.0,20680.0,0.35330191]
[1673745492561,1.450536,20682.0,20678.0,1.02535034]
[1673745492790,0.07640269,20681.0,20679.0,0.49271452]
[1673745493055,0.967116,20680.0,20679.0,0.49271452]
[1673745493310,1.52707669,20680.0,20677.0,0.01898661]
[1673745493569,0.06790269,20679.0,20677.0,0.01898661]
[1673745493882,1.459315,20678.0,20677.0,0.01898661]
[1673745494433,1.459315,20678.0,20677.0,0.58165172]
[1673745494696,0.483605,20678.0,20677.0,0.08460661]
[1673745494947,0.483558,20680.0,20678.0,0.45553676]
[1673745495216,0.0085,20679.0,20678.0,0.45553676]
[1673745496230,0.86230563,20683.0,20678.0,0.451512]
[1673745496597,0.483507,20683.0,20679.0,0.40606995]
[1673745496748,0.483507,20683.0,20679.0,0.19072595]
[1673745497013,0.79460603,20683.0,20679.0,0.19072595]
[1673745497290,1.27809403,20683.0,20679.0,0.19072595]
[1673745498055,0.0085,20682.0,20679.0,0.19072595]
[1673745498310,0.0085,20682.0,20678.0,0.613887]
[1673745498560,0.07640269,20682.0,20679.0,0.321212]
[1673745498835,0.0085,20682.0,20680.0,0.62118547]
[1673745499128,0.0085,20682.0,20680.0,0.40587147]
[1673745499632,1.37343065,20682.0,20680.0,0.40587147]
[1673745499890,1.37343065,20682.0,20678.0,0.1303]
[1673745500153,0.44233323,20681.0,20678.0,0.36090599]
[1673745500499,0.07640269,20680.0,20677.0,0.01898661]
[1673745500745,1.34351869,20680.0,20677.0,0.01898661]
[1673745500997,1.04351869,20680.0,20677.0,0.01898661]
[1673745501243,0.975616,20680.0,20677.0,0.01898661]
[1673745501485,0.3735731,20679.0,20677.0,0.43473241]
[1673745501757,0.96721,20678.0,20677.0,0.43473241]
[1673745501992,0.97571,20678.0,20677.0,0.43473241]
[1673745502242,0.97571,20678.0,20677.0,0.01898661]
[1673745504534,1.41213095,20678.0,20677.0,0.01898661]
[1673745505266,1.71213095,20678.0,20677.0,0.01898661]
[1673745505506,1.85633653,20678.0,20677.0,0.01898661]
[1673745505770,1.85633653,20678.0,20677.0,6.1e-07]
[1673745505771,1.95141438,20678.0,20677.0,6.1e-07]
[1673745506024,1.95141438,20678.0,20674.0,0.0157943]
[1673745506025,0.01385388,20676.0,20674.0,0.0157943]
[1673745506274,2.42040169,20675.0,20674.0,0.00456227]
[1673745506521,2.44968738,20675.0,20674.0,0.00456227]
[1673745506779,3.71738799,20675.0,20674.0,0.00456227]
[1673745507030,2.78567229,20675.0,20674.0,0.00456227]
[1673745507268,3.08567229,20675.0,20674.0,0.00456227]
[1673745507535,2.60480361,20675.0,20674.0,0.00456227]
[1673745507795,3.3820053,20675.0,20674.0,0.00456227]
[1673745508046,3.36806764,20675.0,20674.0,0.00456227]
[1673745508296,3.65748907,20675.0,20674.0,0.00456227]
[1673745508572,3.85599176,20675.0,20674.0,0.00456227]
[1673745508825,3.85599176,20675.0,20670.0,0.01703245]
[1673745508826,0.00456,20674.0,20670.0,0.01703245]
[1673745509071,0.5346168,20671.0,20670.0,0.01703245]
[1673745509340,0.5346168,20671.0,20670.0,0.01203245]
[1673745509341,2.73456549,20671.0,20670.0,0.01203245]
[1673745509589,2.72934285,20671.0,20670.0,0.01203245]
[1673745509833,2.72934285,20671.0,20670.0,4.5e-07]
[1673745510091,2.80148662,20671.0,20670.0,4.5e-07]
[1673745510343,2.36760869,20671.0,20670.0,4.5e-07]
[1673745511098,2.51190138,20671.0,20670.0,4.5e-07]
[1673745511361,2.78275185,20671.0,20670.0,4.5e-07]
[1673745511610,3.05219314,20671.0,20670.0,4.5e-07]
[1673745511858,3.05219314,20671.0,20668.0,0.01281284]
[1673745511859,3.72769052,20671.0,20668.0,0.01281284]
[1673745512107,3.72769052,20671.0,20668.0,0.00857019]
[1673745512108,0.79397502,20669.0,20668.0,0.00857019]
[1673745512352,0.1,20668.0,20665.0,0.01703245]
[1673745512610,0.1306,20666.0,20665.0,0.01703245]
[1673745512857,0.01703,20665.0,20658.0,0.354918]
[1673745513115,0.01703,20665.0,20656.0,0.00101]
[1673745513116,0.1299,20662.0,20656.0,0.00101]
[1673745513363,0.1295,20659.0,20656.0,0.00101]
[1673745513622,0.55197569,20658.0,20656.0,0.00101]
[1673745513870,0.55197569,20658.0,20656.0,0.06663]
[1673745513871,0.00561,20657.0,20656.0,0.06663]
[1673745514127,0.484022,20661.0,20657.0,0.176413]
[1673745514380,0.40366272,20666.0,20658.0,0.51193795]
[1673745514637,0.42021049,20665.0,20663.0,0.1302]
[1673745514886,0.483872,20667.0,20664.0,0.51183495]
[1673745515140,0.51235,20671.0,20665.0,0.19072595]
[1673745515406,0.5786,20672.0,20666.0,0.32132595]
[1673745515407,0.34617453,20669.0,20666.0,0.32132595]
[1673745515658,0.483729,20673.0,20667.0,0.51193795]
[1673745515904,0.89340388,20676.0,20670.0,0.1306]
[1673745515905,0.49751888,20676.0,20670.0,0.1306]
[1673745516175,0.01385388,20676.0,20672.0,0.1303]
[1673745516416,0.01385388,20676.0,20673.0,0.64253795]
[1673745516675,0.01385388,20676.0,20674.0,0.321212]
[1673745516927,0.01385388,20676.0,20674.0,0.19072595]
[1673745517180,0.37756449,20676.0,20673.0,0.35532606]
[1673745517681,0.42582875,20675.0,20673.0,0.35532606]
[1673745517929,0.16790269,20675.0,20670.0,1.04002537]
[1673745518175,0.06790269,20674.0,20671.0,0.47319931]
[1673745518427,0.19614999,20674.0,20671.0,0.47319931]
[1673745518676,0.483706,20674.0,20672.0,0.41754653]
[1673745519201,0.0085,20673.0,20672.0,0.41754653]
[1673745519469,0.0085,20673.0,20670.0,0.62]
[1673745519714,0.42382994,20673.0,20670.0,1.07095943]
[1673745520210,0.35592725,20673.0,20670.0,1.07095943]
[1673745520467,0.35592725,20673.0,20671.0,0.40443419]
[1673745520717,0.35592725,20673.0,20672.0,0.1306]
[1673745520718,0.0085,20673.0,20672.0,0.1306]
[1673745520965,0.93085161,20676.0,20672.0,0.551812]
[1673745520966,0.44718661,20676.0,20672.0,0.551812]
[1673745521218,0.44718661,20676.0,20673.0,0.40624295]
[1673745521472,0.01385388,20676.0,20673.0,0.19072595]
[1673745521726,0.01385388,20676.0,20674.0,0.1306]
[1673745521963,0.01385388,20676.0,20675.0,0.321212]
[1673745522218,0.01385388,20676.0,20675.0,0.74374222]
[1673745522459,0.01385388,20676.0,20675.0,0.63797122]
[1673745522713,0.01385388,20676.0,20675.0,0.42253022]
[1673745522964,0.02235388,20676.0,20675.0,0.42253022]
[1673745523958,0.39320267,20676.0,20673.0,0.49075347]
[1673745524205,0.46110536,20676.0,20673.0,0.49075347]
[1673745524703,0.0085,20675.0,20673.0,0.49075347]
[1673745524976,0.86398387,20675.0,20673.0,0.49075347]
[1673745525702,0.492195,20675.0,20673.0,0.49075347]
[1673745526211,0.0085,20675.0,20673.0,0.19072595]
[1673745526469,0.0085,20675.0,20674.0,0.77273795]
[1673745526729,0.01385388,20676.0,20674.0,1.365711]
[1673745526977,0.01385388,20676.0,20675.0,0.57506]
[1673745527226,0.01385388,20676.0,20675.0,0.44486]
[1673745527721,0.01385388,20676.0,20675.0,0.74486]
[1673745528254,0.0045265,20682.0,20676.0,0.01897997]
[1673745528505,0.0045265,20682.0,20677.0,1.11188795]
[1673745528765,0.0045265,20682.0,20678.0,0.70614495]
[1673745529011,0.03449234,20684.0,20681.0,0.2612]
[1673745529279,0.03449234,20684.0,20683.0,0.1296]
[1673745529535,0.03449234,20684.0,20683.0,0.94138595]
[1673745529774,0.03449234,20684.0,20683.0,0.45066]
[1673745530027,0.03449234,20684.0,20683.0,0.80574549]
[1673745530283,0.03449234,20684.0,20683.0,0.70574549]
[1673745531533,0.03449234,20684.0,20683.0,0.45166]
[1673745531777,0.03449234,20684.0,20683.0,1.335148]
[1673745532021,0.03449234,20684.0,20683.0,1.465648]
[1673745532274,9.234e-05,20684.0,20683.0,1.949136]
[1673745532566,0.0045265,20685.0,20683.0,1.949136]
[1673745532567,0.0045265,20685.0,20684.0,0.1]
[1673745532835,0.00571009,20692.0,20684.0,2.06674464]
[1673745533079,0.39784553,20692.0,20691.0,0.1306]
[1673745533356,0.32994284,20692.0,20691.0,0.53659395]
[1673745533592,0.32994284,20692.0,20691.0,0.50547139]
[1673745533835,0.32994284,20692.0,20691.0,0.1306]
[1673745534334,0.32994284,20692.0,20690.0,0.1306]
[1673745535421,0.81322584,20692.0,20690.0,0.1306]
[1673745535664,0.81322584,20692.0,20690.0,0.52439296]
[1673745535930,0.48899309,20692.0,20690.0,0.52439296]
[1673745536168,0.48899309,20692.0,20691.0,0.321212]
[1673745536415,0.83308359,20692.0,20690.0,0.1306]
[1673745536662,1.31636159,20692.0,20690.0,0.1306]
[1673745537443,0.32235384,20691.0,20690.0,0.1306]
[1673745537687,0.80565484,20691.0,20690.0,0.1306]
[1673745538687,0.491801,20691.0,20690.0,0.1306]
[1673745538930,0.491801,20691.0,20690.0,0.90663915]
[1673745539432,0.0085,20691.0,20690.0,0.90663915]
[1673745540454,0.00571009,20692.0,20690.0,0.90663915]
[1673745540696,0.00571009,20692.0,20691.0,0.445598]
[1673745541205,0.00571009,20692.0,20691.0,0.345598]
[1673745541750,0.00571009,20692.0,20691.0,1.3122]
[1673745543001,0.08211278,20692.0,20687.0,1.120876]
[1673745543250,0.08211278,20692.0,20688.0,0.39753452]
[1673745543251,0.07640269,20691.0,20688.0,0.39753452]
[1673745543505,0.07640269,20691.0,20689.0,0.42435554]
[1673745543762,0.0085,20691.0,20690.0,0.50016518]
[1673745544277,0.00571009,20692.0,20691.0,0.48459208]
[1673745544526,0.00571009,20692.0,20691.0,0.80580408]
[1673745545032,0.01421009,20692.0,20691.0,0.80580408]
[1673745545278,0.01421009,20692.0,20691.0,0.48459208]
[1673745545768,0.04521046,20692.0,20691.0,0.48459208]
[1673745546550,0.52848846,20692.0,20691.0,0.48459208]
[1673745546810,1.01176646,20692.0,20691.0,0.48459208]
[1673745547050,0.04521046,20692.0,20691.0,0.48459208]
[1673745547321,0.04521046,20692.0,20689.0,0.1]
[1673745548095,0.00576408,20694.0,20691.0,0.2593]
[1673745548337,0.00576408,20694.0,20692.0,1.43351894]
[1673745548605,0.00576408,20694.0,20693.0,0.62116]
[1673745548857,0.00576408,20694.0,20693.0,1.204415]
[1673745549111,0.00576408,20694.0,20693.0,1.68767]
[1673745549378,0.00585416,20700.0,20693.0,2.61679764]
[1673745549620,0.00585416,20700.0,20699.0,0.1306]
[1673745549875,0.00585416,20700.0,20699.0,0.64238195]
[1673745550141,0.00585416,20700.0,20699.0,0.451656]
[1673745550393,0.00585416,20700.0,20699.0,0.321056]
[1673745550660,0.00585416,20700.0,20694.0,0.10576]
[1673745550897,0.55101969,20699.0,20694.0,0.39520574]
[1673745551166,0.06790269,20698.0,20694.0,0.39520574]
[1673745551411,0.55106869,20697.0,20694.0,0.39520574]
[1673745551657,0.55956869,20697.0,20694.0,0.39520574]
[1673745551901,0.55956869,20697.0,20692.0,0.06124999]
[1673745551902,0.19850269,20696.0,20692.0,0.06124999]
[1673745552145,0.1306,20693.0,20692.0,0.06124999]
[1673745552400,1.16501269,20693.0,20692.0,0.06124999]
[1673745552660,1.17351269,20693.0,20692.0,0.06124999]
[1673745552916,1.47351269,20693.0,20692.0,0.06124999]
[1673745553171,2.01241169,20693.0,20692.0,0.06124999]
[1673745553429,1.88281169,20693.0,20692.0,0.06124999]
[1673745555183,1.49559516,20693.0,20692.0,0.06124999]
[1673745555424,0.87324016,20693.0,20692.0,0.06124999]
[1673745555688,0.38998516,20693.0,20692.0,0.06124999]
[1673745556178,0.966477,20694.0,20692.0,0.06124999]
[1673745556426,0.1306,20693.0,20692.0,0.06124999]
[1673745556677,1.022355,20693.0,20692.0,0.06124999]
[1673745556931,1.05545653,20693.0,20692.0,0.06124999]
[1673745557178,0.44160153,20693.0,20692.0,0.06124999]
[1673745557423,0.0085,20693.0,20692.0,0.55761961]
[1673745557677,1.099193,20696.0,20692.0,0.55761961]
[1673745557678,0.483193,20696.0,20692.0,0.55761961]
[1673745557925,0.483175,20697.0,20692.0,0.55761961]
[1673745557926,0.40043532,20697.0,20693.0,0.51193795]
[1673745558190,0.3824315,20699.0,20694.0,0.8643626]
[1673745558441,0.3824315,20699.0,20695.0,0.51190395]
[1673745558691,0.3824315,20699.0,20696.0,0.50561195]
[1673745558940,0.38560748,20699.0,20697.0,0.321145]
[1673745559194,0.38560748,20699.0,20694.0,0.9436033]
[1673745559450,0.45351017,20699.0,20694.0,1.23432925]
[1673745559698,0.38259789,20698.0,20695.0,0.321212]
[1673745559950,0.32352207,20696.0,20694.0,0.4603743]
[1673745560200,0.32352207,20696.0,20692.0,0.41769861]
[1673745560201,0.39142476,20696.0,20692.0,0.41769861]
[1673745560461,0.06790269,20695.0,20692.0,0.41769861]
[1673745560710,0.06790269,20695.0,20692.0,0.06124999]
[1673745560955,0.473323,20695.0,20692.0,0.06124999]
[1673745561190,0.43398718,20694.0,20692.0,0.06124999]
[1673745561438,1.11573387,20694.0,20692.0,0.06124999]
[1673745561696,1.04783118,20694.0,20692.0,0.06124999]
[1673745561949,0.1302,20693.0,20692.0,0.06124999]
[1673745562216,0.50660269,20693.0,20692.0,0.06124999]
[1673745562455,2.01271169,20693.0,20692.0,0.06124999]
[1673745562702,1.53551,20693.0,20692.0,0.06124999]
[1673745562946,1.10521,20693.0,20692.0,0.06124999]
[1673745563477,1.43370259,20693.0,20692.0,0.06124999]
[1673745563718,1.53461,20693.0,20692.0,0.06124999]
[1673745563961,2.01181169,20693.0,20692.0,0.06124999]
[1673745564463,1.96181169,20693.0,20692.0,0.06124999]
[1673745565248,1.49778369,20693.0,20692.0,0.25197594]
[1673745565499,1.49828369,20693.0,20692.0,0.06124999]
[1673745565754,1.58211169,20693.0,20692.0,0.06124999]
[1673745566005,1.71171169,20693.0,20692.0,0.06124999]
[1673745566249,1.85572073,20693.0,20692.0,0.06124999]
[1673745566747,2.29605127,20693.0,20692.0,0.06124999]
[1673745566988,2.29605127,20693.0,20683.0,0.44459015]
[1673745566989,0.1,20692.0,20683.0,0.44459015]
[1673745567237,0.1299,20685.0,20683.0,0.44459015]
[1673745567500,0.1299,20685.0,20684.0,0.45539659]
[1673745567743,1.105284,20685.0,20684.0,0.45539659]
[1673745567990,1.105284,20685.0,20684.0,0.38921857]
[1673745568746,1.105284,20685.0,20683.0,0.01551823]
[1673745568991,1.50418776,20685.0,20683.0,0.01551823]
[1673745569255,0.20221,20684.0,20683.0,0.01551823]
[1673745569511,1.03854,20684.0,20683.0,0.01551823]
[1673745570742,1.33854,20684.0,20683.0,0.01551823]
[1673745570985,1.46914,20684.0,20683.0,0.01551823]
[1673745571499,1.82111247,20684.0,20683.0,0.01551823]
[1673745571743,1.52111247,20684.0,20683.0,0.01551823]
[1673745571983,0.97543,20684.0,20683.0,0.01551823]
[1673745572483,0.491965,20684.0,20683.0,0.01551823]
[1673745574025,2.02446807,20684.0,20683.0,0.01551823]
[1673745574268,1.95656538,20684.0,20683.0,0.01551823]
[1673745575018,1.65656538,20684.0,20683.0,0.00551823]
[1673745575289,0.97543,20684.0,20683.0,0.67093008]
[1673745575529,0.483465,20684.0,20683.0,0.48020413]
[1673745576034,0.483461,20685.0,20683.0,0.48020413]
[1673745576282,0.483461,20685.0,20684.0,0.4366566]
[1673745576532,0.966903,20685.0,20684.0,0.4366566]
[1673745576771,0.966903,20685.0,20683.0,0.00551823]
[1673745577013,0.0085,20684.0,20683.0,0.00551823]
[1673745577261,1.43272819,20684.0,20683.0,0.00551823]
[1673745578007,1.73272819,20684.0,20683.0,0.00551823]
[1673745578265,1.43272819,20684.0,20683.0,0.00551823]
[1673745579558,1.62434711,20684.0,20683.0,0.00551823]
[1673745579808,1.43272819,20684.0,20683.0,0.00551823]
[1673745580213,1.73272819,20684.0,20683.0,0.00551823]
[1673745580864,1.36961819,20684.0,20683.0,0.00551823]
[1673745581126,0.491965,20684.0,20683.0,0.73820735]
[1673745581390,0.483419,20686.0,20683.0,0.5474814]
[1673745581391,0.483438,20686.0,20683.0,0.5474814]
[1673745581644,0.92304906,20686.0,20683.0,0.73820735]
[1673745581898,0.39991308,20685.0,20683.0,0.00551823]
[1673745582156,0.96693,20684.0,20683.0,0.00551823]
[1673745582948,0.97543,20684.0,20683.0,0.00551823]
[1673745584509,0.97543,20684.0,20683.0,0.52829892]
[1673745584764,0.0085,20684.0,20683.0,0.71902487]
[1673745585017,0.35003221,20688.0,20683.0,0.71902487]
[1673745585018,0.483347,20690.0,20683.0,0.39235023]
[1673745585272,0.42674125,20690.0,20684.0,0.50592595]
[1673745585550,0.42674125,20690.0,20685.0,0.51189995]
[1673745585828,0.80102679,20693.0,20686.0,0.67413395]
[1673745585829,0.00650273,20693.0,20686.0,0.67413395]
[1673745586089,0.32388291,20691.0,20687.0,0.51193795]
[1673745586341,0.32388291,20691.0,20688.0,0.321212]
[1673745586599,0.32388291,20691.0,20689.0,0.215054]
[1673745586855,0.00650273,20693.0,20688.0,0.19072595]
[1673745587128,0.00650273,20693.0,20690.0,0.47526477]
[1673745587384,0.33499162,20692.0,20687.0,0.39765479]
[1673745587639,0.06790269,20691.0,20687.0,0.39765479]
[1673745588005,0.0085,20690.0,20687.0,0.39765479]
[1673745588192,0.07640269,20690.0,20688.0,0.44401392]
[1673745588444,0.0085,20690.0,20689.0,0.47886435]
[1673745588707,0.48975973,20693.0,20689.0,0.19072595]
[1673745588708,0.0085,20691.0,20689.0,0.19072595]
[1673745588967,0.0085,20692.0,20690.0,0.71063023]
[1673745589223,0.00650273,20693.0,20691.0,0.50572495]
[1673745589471,0.00650273,20693.0,20692.0,0.75092322]
[1673745589990,0.00650273,20693.0,20692.0,0.75095722]
[1673745590565,0.00650273,20693.0,20692.0,0.321212]
[1673745590775,0.00650273,20693.0,20692.0,0.6819737]
[1673745591025,0.55766042,20693.0,20689.0,0.655]
[1673745591280,0.47834682,20692.0,20689.0,0.48620692]
[1673745591835,0.966602,20691.0,20689.0,0.48620692]
[1673745592077,0.975102,20691.0,20689.0,0.48620692]
[1673745592846,0.970102,20691.0,20689.0,0.48620692]
[1673745594107,1.29402764,20691.0,20689.0,0.48620692]
[1673745594645,0.970102,20691.0,20689.0,0.67693287]
[1673745594925,0.0085,20691.0,20690.0,0.321212]
[1673745595189,0.00650273,20693.0,20690.0,0.421212]
[1673745595448,0.00650273,20693.0,20691.0,0.40572495]
[1673745595976,0.00650273,20693.0,20692.0,0.421177]
[1673745596754,0.00650273,20693.0,20692.0,0.321177]
[1673745596997,0.01500273,20693.0,20692.0,0.321177]
[1673745597512,0.01500273,20693.0,20692.0,0.804455]
[1673745598580,0.00650273,20693.0,20692.0,1.287733]
[1673745599337,0.08290542,20693.0,20692.0,0.68701137]
[1673745599636,0.01500273,20693.0,20692.0,0.36583437]
[1673745599900,0.01500273,20693.0,20689.0,0.17979]
[1673745600156,0.07640269,20692.0,20690.0,0.4636707]
[1673745600435,0.0085,20692.0,20690.0,0.4636707]
[1673745601260,0.0085,20692.0,20691.0,0.321212]
[1673745601520,0.007873,20692.0,20691.0,0.321212]
[1673745601776,0.007873,20692.0,20690.0,0.4636707]
[1673745601777,0.974429,20692.0,20690.0,0.4636707]
[1673745604106,1.41418261,20692.0,20690.0,0.4636707]
[1673745604594,1.04233169,20692.0,20686.0,0.48037526]
[1673745604618,1.04233169,20692.0,20687.0,0.40685413]
[1673745604619,0.36860692,20691.0,20687.0,0.40685413]
[1673745604855,0.974429,20692.0,20684.0,0.80732]
[1673745604856,1.51788969,20690.0,20684.0,0.80732]